bitfinex/quotes_BTCUSD_20220226
["timestamp","ask_amount","ask_price","bid_price","bid_amount"]
[1645911026187,0.87757448,39644.0,39642.0,0.00046315]
[1645911026397,0.87757448,39644.0,39641.0,0.00046899]
[1645911026398,0.35,39642.0,39641.0,0.00046899]
[1645911026588,0.73951478,39642.0,39641.0,0.00046899]
[1645911026784,0.55,39641.0,39638.0,0.002]
[1645911026988,0.55,39641.0,39638.0,0.0001]
[1645911026989,0.1,39639.0,39638.0,0.0001]
[1645911027185,0.1504,39639.0,39638.0,0.0001]
[1645911027586,0.2504,39639.0,39624.0,0.01008]
[1645911027793,0.1,39632.0,39624.0,0.01008]
[1645911027985,0.1,39632.0,39625.0,0.7746]
[1645911029033,0.1,39632.0,39626.0,0.7746]
[1645911029637,0.2761839,39632.0,39626.0,0.7746]
[1645911029836,0.1,39632.0,39623.0,0.34910054]
[1645911030135,0.1,39632.0,39623.0,0.78468]
[1645911030337,0.17855316,39635.0,39624.0,0.33902054]
[1645911030536,0.17855316,39635.0,39625.0,0.7746]
[1645911030734,0.1,39627.0,39625.0,0.8246]
[1645911030935,0.17855316,39635.0,39629.0,0.10131291]
[1645911031134,0.17855316,39635.0,39629.0,0.02631291]
[1645911031437,0.1,39630.0,39629.0,0.02631291]
[1645911031635,0.17855316,39635.0,39629.0,0.02631291]
[1645911031636,0.1,39633.0,39629.0,0.02631291]
[1645911031834,0.1,39630.0,39629.0,0.02631291]
[1645911032288,0.1,39630.0,39629.0,0.02677465]
[1645911032483,0.1,39633.0,39629.0,0.02677465]
[1645911032882,0.25,39635.0,39629.0,0.02677465]
[1645911033385,0.20898423,39634.0,39630.0,0.00046174]
[1645911034381,0.20898423,39634.0,39629.0,0.02631291]
[1645911034581,0.20898423,39634.0,39630.0,0.00046174]
[1645911034987,0.1,39633.0,39630.0,0.00046174]
[1645911035582,0.1,39633.0,39629.0,0.02631291]
[1645911035828,0.1,39633.0,39630.0,0.00046174]
[1645911036432,0.30898423,39634.0,39630.0,0.00046174]
[1645911036828,0.30898423,39634.0,39629.0,0.02631291]
[1645911037029,0.1920701,39634.0,39630.0,0.00046174]
[1645911037228,0.1,39631.0,39630.0,0.00046174]
[1645911037632,0.26213305,39631.0,39630.0,0.00046174]
[1645911037831,0.1,39631.0,39630.0,0.00046174]
[1645911038032,0.1,39631.0,39629.0,0.02631291]
[1645911038231,0.1,39631.0,39629.0,0.02665585]
[1645911038430,0.32832962,39630.0,39629.0,0.02665585]
[1645911038630,0.1,39631.0,39629.0,0.02665585]
[1645911039131,0.21551631,39632.0,39629.0,0.02631291]
[1645911039330,0.09,39630.0,39629.0,0.02631291]
[1645911040374,0.091,39630.0,39629.0,0.02631291]
[1645911040576,0.001,39630.0,39629.0,0.02631291]
[1645911040974,0.091,39630.0,39629.0,0.02631291]
[1645911041475,0.09,39630.0,39629.0,0.02631291]
[1645911042274,0.091,39630.0,39629.0,0.02631291]
[1645911042878,0.30193169,39630.0,39629.0,0.02631291]
[1645911043529,0.30093169,39630.0,39629.0,0.02631291]
[1645911044228,0.30193169,39630.0,39629.0,0.02631291]
[1645911044632,0.42009956,39630.0,39621.0,0.07008]
[1645911044832,0.32772064,39629.0,39621.0,0.02008]
[1645911045029,0.001,39630.0,39621.0,0.02008]
[1645911045233,0.064697,39625.0,39621.0,0.02008]
[1645911045631,0.064697,39625.0,39621.0,0.01]
[1645911045632,0.19144098,39623.0,39621.0,0.01]
[1645911045832,0.19011594,39623.0,39621.0,0.01]
[1645911046631,0.064697,39625.0,39621.0,0.01]
[1645911047085,0.064697,39622.0,39621.0,0.01]
[1645911047289,0.064697,39624.0,39621.0,0.01]
[1645911047489,0.32633852,39628.0,39621.0,0.01]
[1645911047490,0.064697,39627.0,39621.0,0.01]
[1645911047685,0.064697,39627.0,39621.0,0.19993427]
[1645911047887,0.064697,39627.0,39621.0,0.20039394]
[1645911048282,0.065697,39627.0,39621.0,0.20039394]
[1645911048781,0.065697,39627.0,39621.0,0.01]
[1645911048984,0.21212338,39626.0,39622.0,0.00045966]
[1645911049583,0.27682038,39626.0,39622.0,0.00045966]
[1645911049983,0.27682038,39626.0,39616.0,0.001]
[1645911049984,0.51330904,39626.0,39616.0,0.001]
[1645911050187,0.51330904,39626.0,39614.0,0.2662412]
[1645911050385,0.51430904,39626.0,39617.0,0.001]
[1645911051031,0.30218566,39626.0,39617.0,0.001]
[1645911051432,0.065697,39626.0,39620.0,0.00045779]
[1645911051632,0.064697,39627.0,39620.0,0.00045779]
[1645911052436,0.1761789,39627.0,39615.0,0.001]
[1645911052636,0.32633852,39626.0,39622.0,0.00045777]
[1645911052837,0.2408759,39627.0,39622.0,0.00045777]
[1645911053242,0.064697,39624.0,39622.0,0.00045777]
[1645911053458,0.75415752,39623.0,39622.0,0.00045777]
[1645911053644,0.147,39622.0,39610.0,0.05]
[1645911053845,0.064697,39612.0,39609.0,0.04]
[1645911054041,0.08616,39612.0,39610.0,0.75737]
[1645911054487,0.064697,39616.0,39610.0,0.75737]
[1645911055385,0.2617576,39616.0,39610.0,0.75737]
[1645911055786,0.1970606,39616.0,39610.0,0.75737]
[1645911056387,0.32633852,39618.0,39611.0,0.00045591]
[1645911056588,0.064697,39620.0,39611.0,0.00045591]
[1645911057188,0.20291965,39618.0,39611.0,0.00045591]
[1645911057388,0.20291965,39618.0,39610.0,0.75737]
[1645911057590,0.20291965,39618.0,39614.0,0.00045588]
[1645911058235,0.377419,39615.0,39614.0,0.00045588]
[1645911058435,0.0504,39615.0,39610.0,0.75737]
[1645911058634,0.21412629,39611.0,39610.0,0.75737]
[1645911059031,0.42045958,39611.0,39610.0,0.75737]
[1645911059435,0.79787858,39611.0,39610.0,0.75737]
[1645911059631,0.58375229,39611.0,39610.0,0.75737]
[1645911059833,0.20633329,39611.0,39610.0,0.75737]
[1645911060435,0.20833329,39611.0,39610.0,0.75737]
[1645911060739,0.82102976,39611.0,39610.0,0.75737]
[1645911060935,1.14736828,39611.0,39610.0,0.75737]
[1645911061134,0.96802976,39611.0,39610.0,0.75737]
[1645911061336,1.29436828,39611.0,39610.0,0.75737]
[1645911061639,1.39236828,39611.0,39610.0,0.75737]
[1645911061834,1.40244828,39611.0,39610.0,0.75737]
[1645911062081,1.44276828,39611.0,39610.0,0.75737]
[1645911062282,1.44376828,39611.0,39610.0,0.75737]
[1645911062687,0.97042976,39611.0,39610.0,0.75737]
[1645911062881,0.90573276,39611.0,39610.0,0.75737]
[1645911063079,0.147,39610.0,39609.0,0.04]
[1645911063282,0.52699376,39610.0,39609.0,0.04]
[1645911063781,0.18699928,39592.0,39584.0,0.22309517]
[1645911063991,0.18699928,39592.0,39588.0,0.01009]
[1645911063992,1.20954833,39592.0,39588.0,0.01009]
[1645911064282,1.20954833,39592.0,39584.0,0.17809517]
[1645911064283,0.18776602,39585.0,39584.0,0.17809517]
[1645911064478,0.12151,39592.0,39585.0,0.56329806]
[1645911064679,0.1206041,39592.0,39585.0,0.56329806]
[1645911065179,0.1206041,39592.0,39585.0,0.55829806]
[1645911065180,0.114599,39592.0,39585.0,0.55829806]
[1645911065478,0.39530452,39590.0,39585.0,0.50829806]
[1645911065939,0.377419,39589.0,39586.0,0.00045582]
[1645911066135,0.377419,39589.0,39585.0,0.50375388]
[1645911066333,0.70051112,39589.0,39585.0,0.50375388]
[1645911066733,0.063205,39588.0,39585.0,0.50375388]
[1645911067033,0.377419,39587.0,39585.0,0.50375388]
[1645911067336,0.524419,39587.0,39585.0,0.50375388]
[1645911067540,0.524419,39587.0,39578.0,0.05]
[1645911067541,1.227419,39585.0,39578.0,0.05]
[1645911067741,1.227419,39585.0,39575.0,0.03]
[1645911067742,0.78266489,39581.0,39575.0,0.03]
[1645911067933,0.377419,39579.0,39575.0,0.03]
[1645911068137,0.28318845,39578.0,39575.0,0.03]
[1645911068337,0.377419,39577.0,39575.0,0.03]
[1645911068541,0.0504,39576.0,39575.0,0.03]
[1645911069243,0.793746,39585.0,39582.0,0.45488818]
[1645911069244,0.5673,39585.0,39582.0,0.45488818]
[1645911069536,0.717,39592.0,39582.0,0.45488818]
[1645911069834,0.717,39592.0,39583.0,0.07309212]
[1645911069835,0.23275077,39589.0,39583.0,0.07309212]
[1645911070032,0.39710668,39589.0,39582.0,0.45488818]
[1645911070431,0.39810668,39589.0,39582.0,0.45488818]
[1645911070834,0.001,39589.0,39586.0,0.035303]
[1645911071039,1.347,39587.0,39577.0,0.06319]
[1645911071244,0.2,39577.0,39561.0,0.01]
[1645911071441,2.47511112,39586.0,39572.0,0.75807]
[1645911071442,0.2,39575.0,39572.0,0.75807]
[1645911071639,0.70051112,39574.0,39572.0,0.75807]
[1645911071835,0.377419,39574.0,39572.0,0.75807]
[1645911072035,0.063233,39573.0,39572.0,0.75807]
[1645911072235,0.440652,39573.0,39572.0,0.75807]
[1645911072645,0.377419,39565.0,39543.0,0.2]
[1645911072843,0.377419,39561.0,39548.0,0.050303]
[1645911073035,0.1489,39565.0,39548.0,0.050303]
[1645911073036,0.0504,39560.0,39548.0,0.050303]
[1645911073239,0.47239985,39559.0,39548.0,0.015]
[1645911073444,0.0504,39558.0,39548.0,0.045303]
[1645911073644,0.063254,39557.0,39538.0,0.6739097]
[1645911073852,0.063254,39557.0,39537.0,0.1553]
[1645911073853,0.2,39555.0,39537.0,0.1553]
[1645911074044,0.44960526,39557.0,39536.0,0.00020189]
[1645911074045,1.38359212,39554.0,39536.0,0.00020189]
[1645911074247,1.38359212,39554.0,39533.0,0.01011]
[1645911074248,0.147,39547.0,39535.0,8.99520189]
[1645911074447,0.16915451,39541.0,39535.0,8.99020189]
[1645911074647,0.87429512,39546.0,39535.0,8.99020189]
[1645911074648,0.0605,39540.0,39538.0,0.00182514]
[1645911074845,0.0504,39543.0,39538.0,0.00182514]
[1645911075043,0.0504,39544.0,39538.0,0.00182514]
[1645911075447,1.19307,39556.0,39536.0,0.15874365]
[1645911075448,0.0504,39550.0,39536.0,0.15874365]
[1645911075645,0.0504,39550.0,39539.0,0.00045626]
[1645911076152,0.5647,39558.0,39539.0,0.00045626]
[1645911076342,0.6151,39558.0,39539.0,0.00045626]
[1645911076741,0.6151,39558.0,39537.0,0.32309212]
[1645911076742,0.68136303,39557.0,39537.0,0.32309212]
[1645911077024,0.440685,39551.0,39547.0,0.00033675]
[1645911077229,1.0216,39548.0,39547.0,6.75e-06]
[1645911077426,1.0216,39548.0,39535.0,8.99020189]
[1645911077427,0.7746,39543.0,39535.0,8.99020189]
[1645911077628,1.75245996,39542.0,39535.0,8.99020189]
[1645911077821,1.85245996,39542.0,39535.0,8.99020189]
[1645911078019,0.59974253,39536.0,39535.0,8.99020189]
[1645911078619,0.65014253,39536.0,39535.0,8.99020189]
[1645911078818,0.83334416,39536.0,39535.0,8.99020189]
[1645911079622,1.21562546,39536.0,39535.0,8.98986122]
[1645911079827,1.09024903,39534.0,39528.0,0.00134244]
[1645911080032,0.504042,39532.0,39528.0,0.00134244]
[1645911080226,0.504042,39532.0,39528.0,2.44e-06]
[1645911080227,0.7746,39530.0,39528.0,2.44e-06]
[1645911080430,1.152019,39528.0,39511.0,0.01]
[1645911080627,0.20116947,39518.0,39511.0,0.009]
[1645911080845,0.20116947,39518.0,39507.0,0.019]
[1645911081055,0.33992718,39517.0,39507.0,0.019]
[1645911081256,0.377419,39515.0,39507.0,0.019]
[1645911081454,0.377419,39513.0,39507.0,0.019]
[1645911081652,0.61187447,39511.0,39507.0,0.019]
[1645911081953,0.06052,39510.0,39507.0,0.019]
[1645911082151,0.22303732,39515.0,39507.0,0.019]
[1645911082152,0.0504,39509.0,39507.0,0.019]
[1645911082351,0.22303732,39515.0,39507.0,0.0185467]
[1645911082548,0.001,39511.0,39507.0,0.0185467]
[1645911083251,0.34092718,39511.0,39507.0,0.0185467]
[1645911083448,0.39032718,39510.0,39507.0,0.0185467]
[1645911083649,0.40044718,39510.0,39507.0,0.0185467]
[1645911083853,0.0504,39510.0,39507.0,0.0185467]
[1645911084051,0.22303732,39515.0,39507.0,0.01400298]
[1645911084252,0.0504,39514.0,39507.0,0.01400298]
[1645911084505,0.377419,39509.0,39507.0,0.01400298]
[1645911084698,0.377419,39511.0,39510.0,0.46888202]
[1645911084895,0.377419,39511.0,39507.0,0.01400298]
[1645911084896,0.94089443,39511.0,39507.0,0.01400298]
[1645911085102,0.94089443,39511.0,39497.0,0.001]
[1645911085103,0.2,39506.0,39497.0,0.001]
[1645911085300,0.87786618,39505.0,39497.0,0.001]
[1645911085497,0.377419,39503.0,39497.0,0.001]
[1645911085697,0.377419,39501.0,39497.0,0.001]
[1645911085899,0.06052,39500.0,39497.0,0.001]
[1645911086101,0.06052,39500.0,39493.0,0.001]
[1645911086102,0.01012,39500.0,39493.0,0.001]
[1645911086301,0.427819,39499.0,39493.0,0.001]
[1645911086499,0.20567101,39494.0,39493.0,0.001]
[1645911086697,0.0504,39496.0,39493.0,0.001]
[1645911086899,0.0504,39498.0,39493.0,0.001]
[1645911087503,0.002,39501.0,39494.0,0.1]
[1645911087702,0.17665726,39520.0,39494.0,0.1]
[1645911087703,0.00012388,39503.0,39495.0,0.33992718]
[1645911088543,0.18271675,39502.0,39495.0,0.33992718]
[1645911088742,0.235383,39506.0,39498.0,0.00865155]
[1645911088942,0.00041296,39503.0,39498.0,0.00865155]
[1645911089944,0.01012,39513.0,39498.0,0.00865155]
[1645911090143,0.01012,39513.0,39499.0,0.00045618]
[1645911090144,0.00041298,39503.0,39499.0,0.00045618]
[1645911091147,0.20444002,39506.0,39498.0,0.00865155]
[1645911091347,0.25041298,39503.0,39499.0,0.00045618]
[1645911091860,0.02766874,39503.0,39499.0,0.00045618]
[1645911092104,0.02766874,39503.0,39502.0,0.1]
[1645911092307,0.02725576,39503.0,39502.0,0.34046276]
[1645911092505,0.02725576,39503.0,39499.0,0.00045618]
[1645911092704,0.02766874,39503.0,39499.0,0.00045618]
[1645911093502,0.02766874,39503.0,39498.0,0.00865155]
[1645911093503,0.02725576,39503.0,39498.0,0.00865155]
[1645911093701,0.02766874,39503.0,39499.0,0.00045618]
[1645911094499,0.02766874,39503.0,39495.0,0.09545618]
[1645911094699,0.02725576,39503.0,39496.0,0.75951]
[1645911096858,1.45386972,39503.0,39496.0,0.75951]
[1645911097259,1.45386972,39503.0,39497.0,0.00033229]
[1645911097959,2.31683786,39502.0,39497.0,0.00033229]
[1645911098357,2.31683786,39502.0,39497.0,0.34046276]
[1645911098560,0.00041411,39502.0,39497.0,0.09591238]
[1645911098763,0.00041411,39502.0,39497.0,0.28896112]
[1645911098962,0.00041411,39502.0,39500.0,0.09545618]
[1645911099165,0.34046276,39519.0,39501.0,0.825]
[1645911099166,0.22521487,39519.0,39501.0,0.825]
[1645911099369,0.22521487,39519.0,39497.0,0.6105762]
[1645911099370,0.10638959,39516.0,39497.0,0.6105762]
[1645911099614,0.161773,39498.0,39497.0,0.6]
[1645911099810,0.88233026,39498.0,39497.0,1.35955]
[1645911100016,0.54373582,39498.0,39497.0,1.35955]
[1645911100312,1.0,39497.0,39493.0,0.001]
[1645911100518,0.00454382,39494.0,39493.0,0.001]
[1645911100711,0.38196282,39494.0,39493.0,0.001]
[1645911100912,0.72055726,39494.0,39493.0,0.001]
[1645911101110,0.00454382,39494.0,39493.0,0.001]
[1645911101311,0.38196282,39494.0,39493.0,0.001]
[1645911101512,0.39208282,39494.0,39493.0,0.001]
[1645911101712,0.06466382,39494.0,39493.0,0.001]
[1645911101912,0.78067726,39494.0,39493.0,0.001]
[1645911102113,0.44208282,39494.0,39493.0,0.001]
[1645911102313,0.39825826,39494.0,39493.0,0.001]
[1645911102515,0.06066382,39494.0,39493.0,0.001]
[1645911102713,0.73167726,39494.0,39493.0,0.001]
[1645911103268,0.39308282,39494.0,39493.0,0.001]
[1645911103566,0.01112,39494.0,39493.0,0.001]
[1645911103863,0.34871444,39494.0,39493.0,0.001]
[1645911104063,0.41325826,39494.0,39493.0,0.001]
[1645911104264,0.84107726,39494.0,39493.0,0.001]
[1645911104465,0.79207726,39494.0,39493.0,0.001]
[1645911104664,0.07606382,39494.0,39493.0,0.001]
[1645911105463,0.79207726,39494.0,39493.0,0.001]
[1645911105663,0.79107726,39494.0,39493.0,0.001]
[1645911106070,0.063373,39491.0,39481.0,0.01]
[1645911106267,0.377419,39483.0,39481.0,0.01]
[1645911106468,0.6115575,39487.0,39486.0,0.2950159]
[1645911106864,0.7115575,39487.0,39486.0,0.2950159]
[1645911107101,0.3340825,39487.0,39486.0,0.2950159]
[1645911107290,0.7115575,39487.0,39486.0,0.2950159]
[1645911107887,0.91660935,39487.0,39486.0,0.2950159]
[1645911108687,0.91860935,39487.0,39486.0,0.2950159]
[1645911109688,0.91660935,39487.0,39486.0,0.2950159]
[1645911110489,0.91760935,39487.0,39486.0,0.2950159]
[1645911110943,1.26502167,39487.0,39486.0,0.2900159]
[1645911111140,0.91760935,39487.0,39486.0,0.2900159]
[1645911111344,0.81760935,39487.0,39486.0,0.2900159]
[1645911111543,0.49013435,39487.0,39486.0,0.2900159]
[1645911111741,0.3290825,39487.0,39486.0,0.2900159]
[1645911111941,0.6115575,39487.0,39486.0,0.2900159]
[1645911112144,0.2340825,39487.0,39486.0,0.2900159]
[1645911112544,0.6125575,39487.0,39486.0,0.2900159]
[1645911113350,0.58249482,39487.0,39486.0,0.2900159]
[1645911113544,0.80982025,39487.0,39486.0,0.2900159]
[1645911113744,0.80882025,39487.0,39486.0,0.2900159]
[1645911113944,0.43134525,39487.0,39486.0,0.2900159]
[1645911114344,0.48134525,39487.0,39486.0,0.2900159]
[1645911114582,0.53234525,39487.0,39486.0,0.2900159]
[1645911114985,1.25723257,39487.0,39481.0,0.01]
[1645911115188,0.50422409,39486.0,39481.0,0.01]
[1645911115392,0.377475,39484.0,39481.0,0.01]
[1645911115591,0.0504,39483.0,39481.0,0.01]
[1645911115786,0.377475,39482.0,39481.0,0.01]
[1645911115983,0.477875,39482.0,39481.0,0.01]
[1645911116184,0.1004,39482.0,39481.0,0.01]
[1645911116383,0.477875,39482.0,39481.0,0.01]
[1645911116586,0.82628732,39482.0,39481.0,0.01]
[1645911116884,0.82628732,39482.0,39480.0,0.00045313]
[1645911116885,0.35,39481.0,39480.0,0.00045313]
[1645911117184,0.377475,39481.0,39480.0,0.00045313]
[1645911117383,0.427475,39481.0,39480.0,0.00045313]
[1645911117583,0.06337945,39479.0,39468.0,0.01012]
[1645911117785,0.41603245,39474.0,39468.0,0.01012]
[1645911117987,0.79350745,39474.0,39468.0,0.01012]
[1645911118249,0.89350745,39474.0,39473.0,0.035]
[1645911118545,0.89450745,39474.0,39473.0,0.03]
[1645911119744,0.89350745,39474.0,39473.0,0.03]
[1645911119943,0.51603245,39474.0,39473.0,0.03]
[1645911120143,0.32454935,39474.0,39473.0,0.03]
[1645911120346,0.13687947,39479.0,39473.0,0.03]
[1645911120546,0.002,39474.0,39473.0,0.03]
[1645911120946,0.002,39474.0,39473.0,0.407475]
[1645911121346,0.002,39474.0,39473.0,0.4070233]
[1645911121745,0.34857252,39482.0,39473.0,0.4070233]
[1645911122001,0.24173993,39483.0,39473.0,0.0295483]
[1645911122197,0.15759888,39481.0,39473.0,0.0295483]
[1645911122397,0.05,39481.0,39473.0,0.0295483]
[1645911122592,0.34173993,39483.0,39476.0,0.00045273]
[1645911123192,0.163374,39483.0,39473.0,0.02500103]
[1645911123396,0.18563057,39482.0,39473.0,0.02500103]
[1645911123592,0.1,39483.0,39473.0,0.02500103]
[1645911124194,0.17673873,39486.0,39480.0,0.20241006]
[1645911124397,0.5,39489.0,39480.0,0.20241006]
[1645911124598,0.01012,39492.0,39481.0,0.377475]
[1645911124798,0.6404,39494.0,39481.0,0.377475]
[1645911124799,0.01012,39493.0,39481.0,0.377475]
[1645911124996,0.15895463,39493.0,39481.0,1.152075]
[1645911125194,0.15895463,39493.0,39481.0,0.377475]
[1645911125400,0.1585714,39493.0,39480.0,0.19741006]
[1645911125597,0.16913704,39491.0,39480.0,0.19741006]
[1645911125854,0.16913704,39491.0,39475.0,0.0504]
[1645911125855,0.34857252,39490.0,39475.0,0.0504]
[1645911126044,0.07348477,39489.0,39475.0,0.0504]
[1645911126239,0.34857252,39488.0,39475.0,0.0504]
[1645911126440,0.39857252,39488.0,39475.0,0.0504]
[1645911126744,0.07348477,39489.0,39476.0,0.36879137]
[1645911126745,0.05,39487.0,39476.0,0.36879137]
[1645911126940,0.00041289,39495.0,39475.0,0.369086]
[1645911127140,0.0633592,39492.0,39475.0,0.369082]
[1645911127740,0.34857252,39491.0,39481.0,0.22824604]
[1645911128143,0.06336539,39488.0,39473.0,0.21000103]
[1645911128344,0.377477,39486.0,39473.0,0.21000103]
[1645911128551,0.377477,39486.0,39476.0,0.002]
[1645911128552,0.377477,39484.0,39476.0,0.002]
[1645911128748,0.063386,39480.0,39474.0,0.00032869]
[1645911128943,0.05,39478.0,39474.0,0.00032869]
[1645911129144,0.063386,39480.0,39479.0,0.13344571]
[1645911129344,0.450928,39480.0,39479.0,0.13344571]
[1645911129593,0.440878,39480.0,39479.0,0.13344571]
[1645911130194,0.63099438,39480.0,39479.0,0.13344571]
[1645911130595,0.441878,39480.0,39479.0,0.13344571]
[1645911131897,0.440878,39480.0,39479.0,0.13344571]
[1645911132497,0.441878,39480.0,39479.0,0.13344571]
[1645911132901,0.43508595,39480.0,39479.0,0.13344571]
[1645911133100,0.42508595,39480.0,39479.0,0.13344571]
[1645911133838,0.42408595,39480.0,39479.0,0.13344571]
[1645911134334,0.77343543,39480.0,39479.0,0.13344571]
[1645911134534,0.42508595,39480.0,39479.0,0.13344571]
[1645911135735,0.42408595,39480.0,39479.0,0.13344571]
[1645911135935,0.77343543,39480.0,39479.0,0.13344571]
[1645911136339,0.42408595,39480.0,39479.0,0.13344571]
[1645911136534,0.42508595,39480.0,39479.0,0.13344571]
[1645911137793,0.42408595,39480.0,39479.0,0.13344571]
[1645911137991,0.43408595,39480.0,39479.0,0.13344571]
[1645911138598,0.05759395,39480.0,39479.0,0.13344571]
[1645911139190,0.43508595,39480.0,39479.0,0.13344571]
[1645911139394,0.05759395,39480.0,39479.0,0.13344571]
[1645911139794,0.43508595,39480.0,39479.0,0.13344571]
[1645911139994,0.43408595,39480.0,39479.0,0.13344571]
[1645911140195,0.387492,39480.0,39479.0,0.13344571]
[1645911140595,0.388492,39480.0,39479.0,0.13344571]
[1645911141262,0.011,39480.0,39479.0,0.13344571]
[1645911141462,0.388492,39480.0,39479.0,0.13344571]
[1645911141669,0.011,39480.0,39479.0,0.13344571]
[1645911141862,0.387492,39480.0,39479.0,0.13344571]
[1645911142463,0.388492,39480.0,39479.0,0.13344571]
[1645911142665,0.011,39480.0,39479.0,0.13344571]
[1645911143866,0.01,39480.0,39479.0,0.13344571]
[1645911144695,0.01,39480.0,39479.0,0.30658239]
[1645911146295,0.01,39480.0,39479.0,0.68407439]
[1645911146496,0.01012,39492.0,39485.0,0.22400844]
[1645911146695,0.60936948,39494.0,39480.0,0.0150723]
[1645911147093,0.20818642,39491.0,39480.0,0.0150723]
[1645911147496,0.063365,39488.0,39480.0,0.0150723]
[1645911147700,0.377492,39487.0,39480.0,0.0150723]
[1645911148341,0.377492,39487.0,39482.0,0.18933752]
[1645911149136,0.01,39487.0,39482.0,0.18933752]
[1645911150438,0.06336034,39492.0,39488.0,0.1898075]
[1645911150639,0.377492,39491.0,39488.0,0.1898075]
[1645911150837,0.06336034,39492.0,39480.0,0.0150723]
[1645911151839,0.06336034,39492.0,39486.0,0.1785025]
[1645911152102,0.16573198,39493.0,39486.0,0.1785025]
[1645911152302,0.00041143,39495.0,39486.0,0.1785025]
[1645911152497,0.791105,39502.0,39486.0,0.1785025]
[1645911152498,0.001,39492.0,39486.0,0.1785025]
[1645911152696,0.001,39492.0,39487.0,0.34934948]
[1645911152894,0.001,39492.0,39486.0,0.1785025]
[1645911153292,0.1810313,39492.0,39486.0,0.1785025]
[1645911153494,0.001,39492.0,39486.0,0.1785025]
[1645911153998,0.001,39492.0,39487.0,0.34934948]
[1645911154394,0.16461767,39495.0,39487.0,0.34934948]
[1645911154994,0.22755892,39495.0,39486.0,0.1785025]
[1645911155195,0.2279704,39495.0,39486.0,0.1785025]
[1645911156146,0.22755892,39495.0,39487.0,0.34934948]
[1645911156346,0.22797039,39495.0,39486.0,0.1785025]
[1645911156547,0.22797039,39495.0,39487.0,0.34934948]
[1645911157346,0.22755892,39495.0,39487.0,0.34934948]
[1645911157545,0.2279704,39495.0,39487.0,0.34934948]
[1645911158146,0.2279704,39495.0,39486.0,0.1785025]
[1645911158344,0.2279704,39495.0,39487.0,0.34934948]
[1645911158547,0.06335271,39495.0,39487.0,0.34934948]
[1645911158748,0.00041147,39495.0,39487.0,0.34934948]
[1645911158948,0.00041147,39495.0,39487.0,0.37469948]
[1645911159147,0.00041147,39495.0,39488.0,0.368814]
[1645911159347,0.13681281,39499.0,39495.0,0.00082294]
[1645911159592,0.377492,39498.0,39495.0,0.00082294]
[1645911159795,0.13681281,39499.0,39495.0,0.00082294]
[1645911160191,0.073466,39499.0,39495.0,0.00082294]
[1645911160592,0.387612,39498.0,39495.0,0.00082294]
[1645911160793,0.01012,39498.0,39495.0,0.00082294]
[1645911161593,0.377492,39497.0,39495.0,0.00082294]
[1645911161794,0.01012,39498.0,39495.0,0.00082294]
[1645911162299,0.377492,39499.0,39495.0,0.00082294]
[1645911162494,0.377492,39497.0,39495.0,0.00082294]
[1645911162894,0.00341047,39498.0,39495.0,0.00082294]
[1645911163096,0.377492,39497.0,39495.0,0.00082294]
[1645911163533,0.066349,39498.0,39495.0,0.00082294]
[1645911163735,0.06669162,39498.0,39495.0,0.00082294]
[1645911164436,0.05669162,39498.0,39495.0,0.00082294]
[1645911164633,0.058349,39498.0,39495.0,0.00082294]
[1645911164839,0.05869162,39498.0,39495.0,0.00082294]
[1645911165139,0.05529715,39498.0,39495.0,0.00082294]
[1645911165337,0.377492,39497.0,39495.0,0.00082294]
[1645911165534,0.05529715,39498.0,39495.0,0.00082294]
[1645911165737,0.05495453,39498.0,39495.0,0.00082294]
[1645911165935,0.377492,39497.0,39495.0,0.00082294]
[1645911166138,0.00034262,39498.0,39495.0,0.00082294]
[1645911166535,0.001,39497.0,39495.0,0.00082294]
[1645911167908,0.00034262,39498.0,39495.0,0.00082294]
[1645911168109,0.0002,39500.0,39495.0,0.00082294]
[1645911168510,0.00035249,39498.0,39495.0,0.00082294]
[1645911169309,0.0002,39500.0,39495.0,0.00082294]
[1645911169710,0.00035249,39498.0,39495.0,0.00082294]
[1645911170518,0.377492,39497.0,39495.0,0.00082294]
[1645911170747,0.78236148,39496.0,39495.0,0.00082294]
[1645911171142,1.66196148,39496.0,39495.0,0.00082294]
[1645911171348,1.29407361,39496.0,39495.0,0.00082294]
[1645911171844,0.84472413,39496.0,39495.0,0.00082294]
[1645911172243,0.89472413,39496.0,39495.0,0.00082294]
[1645911172445,0.01012,39496.0,39495.0,0.00082294]
[1645911172652,0.378492,39496.0,39495.0,0.00082294]
[1645911172847,0.001,39496.0,39495.0,0.00082294]
[1645911173047,0.378492,39496.0,39495.0,0.00082294]
[1645911173646,0.2078163,39496.0,39495.0,0.00082294]
[1645911174044,0.001,39496.0,39495.0,0.00082294]
[1645911174494,0.377492,39496.0,39495.0,0.00082294]
[1645911174701,0.82884148,39496.0,39495.0,0.00082294]
[1645911174897,0.063374,39493.0,39485.0,0.00042596]
[1645911175203,0.15,39490.0,39485.0,0.00042596]
[1645911175405,0.15,39490.0,39480.0,0.0150723]
[1645911175406,0.6350404,39489.0,39480.0,0.0150723]
[1645911175595,0.1710911,39481.0,39480.0,0.0150723]
[1645911175796,0.5485831,39481.0,39480.0,0.0150723]
[1645911176195,0.440874,39481.0,39480.0,0.0150723]
[1645911176499,0.377492,39481.0,39480.0,0.0150723]
[1645911176695,0.378492,39481.0,39480.0,0.0150723]
[1645911177295,0.677492,39480.0,39473.0,0.02674764]
[1645911177505,0.377492,39478.0,39473.0,0.02674764]
[1645911177694,0.377492,39476.0,39473.0,0.02674764]
[1645911177899,0.377492,39474.0,39473.0,0.02500103]
[1645911178093,0.0504,39474.0,39473.0,0.02500103]
[1645911178350,0.62946779,39474.0,39473.0,0.02000103]
[1645911178548,0.63046779,39474.0,39473.0,0.02000103]
[1645911179047,0.55,39473.0,39471.0,0.0111]
[1645911179252,0.90404648,39472.0,39465.0,0.001]
[1645911179449,0.34934948,39471.0,39465.0,0.001]
[1645911179646,0.427892,39470.0,39465.0,0.001]
[1645911179848,0.377492,39468.0,39465.0,0.001]
[1645911180150,0.477892,39468.0,39465.0,0.001]
[1645911180654,0.477892,39468.0,39457.0,0.00250899]